bitfinex/quotes_BTCUSD_20220303
["timestamp","ask_amount","ask_price","bid_price","bid_amount"]
[1646291221856,0.025,43501.0,43493.0,0.26749105]
[1646291222057,0.025,43501.0,43496.0,0.00017193]
[1646291223099,0.025,43501.0,43493.0,0.26749105]
[1646291223299,0.025,43501.0,43496.0,0.00017193]
[1646291224302,0.025,43501.0,43490.0,0.14009254]
[1646291224505,0.025,43501.0,43496.0,0.00017193]
[1646291225505,0.025,43501.0,43490.0,0.14009254]
[1646291225703,0.19709996,43506.0,43497.0,0.28185622]
[1646291225704,0.025,43506.0,43497.0,0.28185622]
[1646291225905,0.17828893,43506.0,43498.0,0.37745528]
[1646291226348,0.025,43506.0,43498.0,0.37745528]
[1646291226750,0.025,43506.0,43500.0,0.19116378]
[1646291226950,0.10000805,43502.0,43500.0,0.19116378]
[1646291227150,0.025,43506.0,43500.0,0.19116378]
[1646291227151,0.10000805,43501.0,43500.0,0.19116378]
[1646291228558,0.005,43506.0,43500.0,0.56861906]
[1646291228755,0.011,43506.0,43500.0,0.56861906]
[1646291229453,0.05,43511.0,43501.0,0.14009254]
[1646291229653,0.21632749,43513.0,43501.0,0.14009254]
[1646291229852,0.21632749,43513.0,43507.0,0.48096829]
[1646291230103,0.21632749,43513.0,43507.0,0.21114983]
[1646291230299,0.21632749,43513.0,43501.0,0.14009254]
[1646291230499,0.18784856,43508.0,43501.0,0.14009254]
[1646291230699,0.21632749,43513.0,43501.0,0.14009254]
[1646291231099,0.2146744,43509.0,43501.0,0.14009254]
[1646291231299,0.21632749,43513.0,43503.0,0.17462129]
[1646291231702,0.18582849,43511.0,43503.0,0.17462129]
[1646291231899,0.025,43511.0,43503.0,0.17462129]
[1646291232500,0.03,43511.0,43503.0,0.17462129]
[1646291233606,0.025,43511.0,43503.0,0.17462129]
[1646291236957,0.025,43511.0,43503.0,0.69641786]
[1646291237155,0.025,43511.0,43503.0,0.17462129]
[1646291238405,0.025,43511.0,43500.0,0.60508088]
[1646291238602,0.025,43511.0,43501.0,0.14009254]
[1646291239409,0.1884801,43499.0,43498.0,0.1211]
[1646291239606,0.1884801,43499.0,43497.0,0.00017257]
[1646291240004,0.1884801,43499.0,43489.0,0.37745528]
[1646291240205,0.1884801,43499.0,43496.0,0.00017253]
[1646291240410,0.2490101,43499.0,43496.0,0.00017253]
[1646291240608,0.1914801,43499.0,43496.0,0.00017253]
[1646291240808,0.5,43498.0,43496.0,6.398e-05]
[1646291241254,0.5,43498.0,43492.0,0.17441199]
[1646291241958,0.5,43498.0,43494.0,0.22733353]
[1646291242554,0.5,43498.0,43492.0,0.17441199]
[1646291242757,0.5,43498.0,43492.0,0.31450453]
[1646291242956,0.0464,43502.0,43493.0,0.37745528]
[1646291243156,0.0464,43502.0,43493.0,0.14009254]
[1646291243557,0.0464,43502.0,43497.0,0.00263983]
[1646291245411,0.0464,43502.0,43497.0,0.14273237]
[1646291245610,0.0464,43502.0,43497.0,0.00263983]
[1646291246016,0.0464,43502.0,43497.0,0.14273237]
[1646291246614,0.0464,43502.0,43497.0,0.00263983]
[1646291246811,0.0464,43502.0,43498.0,0.14009254]
[1646291247215,0.0464,43502.0,43498.0,0.38484182]
[1646291247514,0.0464,43502.0,43498.0,0.14009254]
[1646291247911,0.0464,43502.0,43497.0,0.00263983]
[1646291248412,0.24050571,43502.0,43492.0,0.17441199]
[1646291248613,0.24550571,43502.0,43494.0,0.00017862]
[1646291249451,0.24550571,43502.0,43492.0,0.17441199]
[1646291249651,0.24550571,43502.0,43494.0,0.00017862]
[1646291249852,0.24050571,43502.0,43494.0,0.00017862]
[1646291250051,0.24050571,43502.0,43496.0,0.22434517]
[1646291250250,0.24050571,43502.0,43494.0,0.00017862]
[1646291250650,0.0514,43502.0,43492.0,0.17441199]
[1646291250853,0.0514,43502.0,43494.0,0.00017862]
[1646291251751,0.0464,43502.0,43494.0,0.00017862]
[1646291251951,0.0464,43502.0,43496.0,0.26094453]
[1646291252149,0.0464,43502.0,43498.0,0.14009254]
[1646291253025,0.0464,43502.0,43496.0,0.26094453]
[1646291253225,0.0464,43502.0,43498.0,0.14009254]
[1646291253425,0.0464,43502.0,43496.0,0.26094453]
[1646291253628,0.0464,43502.0,43498.0,0.14009254]
[1646291254026,0.0464,43502.0,43496.0,0.26094453]
[1646291254424,0.0514,43502.0,43498.0,0.14009254]
[1646291255029,0.005,43502.0,43498.0,0.14009254]
[1646291255425,0.005,43502.0,43496.0,0.26094453]
[1646291255629,0.005,43502.0,43497.0,0.14009254]
[1646291255828,0.19743175,43505.0,43497.0,0.14009254]
[1646291256127,0.19743175,43505.0,43496.0,0.26094453]
[1646291256566,0.20243175,43505.0,43496.0,0.26094453]
[1646291257367,0.20243175,43505.0,43494.0,0.00017261]
[1646291257766,0.19743175,43505.0,43494.0,0.00017261]
[1646291257968,0.19743175,43505.0,43493.0,0.25289254]
[1646291258168,0.19680257,43505.0,43494.0,0.00017261]
[1646291258567,0.002,43505.0,43494.0,0.00017261]
[1646291258768,0.002,43505.0,43499.0,0.20555292]
[1646291259368,0.002,43505.0,43500.0,0.24217964]
[1646291259570,0.20841814,43503.0,43499.0,0.34564546]
[1646291259770,0.1554756,43506.0,43499.0,0.34564546]
[1646291260601,0.1554756,43506.0,43499.0,0.60986383]
[1646291261102,0.16775075,43504.0,43499.0,0.20555292]
[1646291261301,0.1554756,43506.0,43499.0,0.20555292]
[1646291261901,0.1554756,43506.0,43499.0,1.20555292]
[1646291262302,0.025,43507.0,43499.0,1.20555292]
[1646291262503,0.006,43506.0,43499.0,1.20555292]
[1646291263777,0.36942462,43508.0,43499.0,1.20555292]
[1646291264975,0.36942462,43508.0,43499.0,1.34564546]
[1646291265379,0.20944266,43508.0,43499.0,1.34564546]
[1646291265776,0.28439271,43509.0,43499.0,1.34564546]
[1646291266278,0.0464,43509.0,43499.0,1.34564546]
[1646291266477,0.0534,43509.0,43499.0,1.34564546]
[1646291266878,0.19226615,43507.0,43499.0,1.34564546]
[1646291267277,0.0534,43509.0,43503.0,0.28098563]
[1646291267904,0.0464,43509.0,43503.0,0.28098563]
[1646291268102,0.0464,43509.0,43499.0,1.34564546]
[1646291268305,0.17988674,43507.0,43499.0,1.34564546]
[1646291268503,0.0464,43509.0,43499.0,1.34564546]
[1646291269003,0.0464,43509.0,43502.0,0.28674675]
[1646291269705,0.00017249,43512.0,43506.0,0.20484988]
[1646291269904,0.00017249,43512.0,43507.0,0.37745528]
[1646291270107,0.03389532,43514.0,43507.0,0.37745528]
[1646291270409,0.0001725,43512.0,43507.0,0.37745528]
[1646291270604,0.0001725,43512.0,43506.0,0.20484988]
[1646291270804,0.0001725,43512.0,43511.0,0.14009254]
[1646291271257,0.006,43517.0,43511.0,0.14009254]
[1646291271457,0.0001725,43514.0,43511.0,0.14009254]
[1646291272559,0.62281694,43518.0,43511.0,0.14009254]
[1646291272760,0.0001725,43515.0,43511.0,0.14009254]
[1646291273564,0.39545528,43519.0,43511.0,0.14009254]
[1646291273565,0.018,43519.0,43511.0,0.14009254]
[1646291273961,0.0001725,43515.0,43511.0,0.14009254]
[1646291274563,0.0021725,43515.0,43511.0,0.14009254]
[1646291274762,0.002,43515.0,43511.0,0.14009254]
[1646291275003,0.0021725,43515.0,43511.0,0.14009254]
[1646291276106,0.002,43515.0,43511.0,0.14009254]
[1646291276307,0.0021725,43515.0,43511.0,0.14009254]
[1646291276506,0.0001725,43515.0,43510.0,0.00211509]
[1646291277307,0.17252711,43518.0,43510.0,0.00211509]
[1646291277507,0.0001725,43515.0,43510.0,0.00211509]
[1646291278509,0.17252711,43518.0,43508.0,0.14009254]
[1646291278752,0.0001725,43515.0,43508.0,0.14009254]
[1646291279750,0.17252711,43518.0,43508.0,0.14009254]
[1646291280050,0.0001725,43514.0,43508.0,0.14009254]
[1646291280654,0.0001725,43514.0,43507.0,0.11500159]
[1646291280851,0.005,43515.0,43508.0,0.0018845]
[1646291281052,0.0001725,43513.0,43508.0,0.0018845]
[1646291281551,0.0001725,43513.0,43507.0,0.11500159]
[1646291281951,0.31562048,43517.0,43507.0,0.11500159]
[1646291282153,0.057504,43516.0,43507.0,0.11500159]
[1646291282354,0.0001725,43512.0,43507.0,0.11500159]
[1646291283208,0.004,43513.0,43507.0,0.11500159]
[1646291283405,0.0015,43513.0,43507.0,0.11500159]
[1646291283605,0.0001725,43512.0,43510.0,0.00208732]
[1646291284411,0.37745528,43515.0,43510.0,0.00208732]
[1646291284711,0.0001725,43513.0,43510.0,0.00208732]
[1646291285713,0.005,43517.0,43510.0,0.00208732]
[1646291286011,0.0001725,43514.0,43510.0,0.00208732]
[1646291286855,0.011,43519.0,43516.0,0.1821231]
[1646291288358,0.011,43519.0,43510.0,0.14217986]
[1646291288555,0.016,43519.0,43512.0,0.00212448]
[1646291289558,0.016,43519.0,43513.0,0.20134806]
[1646291289559,0.00017249,43518.0,43513.0,0.20134806]
[1646291290407,0.011,43519.0,43513.0,0.20134806]
[1646291290608,0.00417249,43518.0,43513.0,0.20134806]
[1646291291609,0.004,43518.0,43513.0,0.20134806]
[1646291291808,0.00015786,43518.0,43513.0,0.20134806]
[1646291292810,0.011,43519.0,43514.0,0.22542564]
[1646291293010,0.00015835,43518.0,43514.0,0.22542564]
[1646291293880,0.00015835,43518.0,43514.0,0.22752293]
[1646291294083,0.011,43519.0,43514.0,0.22752293]
[1646291294283,0.00015835,43518.0,43514.0,0.22752293]
[1646291294482,0.00615835,43518.0,43514.0,0.22752293]
[1646291295183,0.006,43518.0,43514.0,0.22752293]
[1646291295483,0.00615835,43518.0,43515.0,0.14009254]
[1646291295883,0.00015835,43518.0,43515.0,0.14009254]
[1646291296289,0.00015835,43518.0,43514.0,0.00209729]
[1646291296489,0.00015835,43518.0,43517.0,0.14009254]
[1646291296490,0.006,43518.0,43517.0,0.14009254]
[1646291297517,0.006,43518.0,43517.0,0.38908521]
[1646291297718,0.011,43519.0,43517.0,0.38908521]
[1646291297918,0.011,43519.0,43517.0,0.14009254]
[1646291298118,0.011,43519.0,43514.0,0.37955257]
[1646291298119,0.011,43519.0,43516.0,0.14009254]
[1646291298519,0.015,43519.0,43516.0,0.14009254]
[1646291298924,0.015,43519.0,43517.0,0.23485764]
[1646291299119,0.015,43519.0,43517.0,0.22055764]
[1646291299318,0.001,43521.0,43518.0,0.95]
[1646291299319,0.00015926,43520.0,43518.0,0.95]
[1646291299521,0.00015926,43520.0,43519.0,0.8717549]
[1646291299720,0.00015926,43520.0,43519.0,0.5158079]
[1646291299919,0.00015926,43520.0,43519.0,0.5388279]
[1646291300121,0.001,43521.0,43519.0,0.5388279]
[1646291300322,0.001,43521.0,43520.0,0.20879442]
[1646291300525,0.001,43521.0,43520.0,0.58450978]
[1646291301380,0.001,43521.0,43520.0,0.20879442]
[1646291301978,0.001,43521.0,43519.0,0.14009254]
[1646291302578,0.001,43521.0,43517.0,0.22055764]
[1646291302978,0.001,43521.0,43516.0,0.14245177]
[1646291303581,0.20304634,43521.0,43516.0,0.00235923]
[1646291303782,0.20304634,43521.0,43520.0,0.00253928]
[1646291304186,0.2032055,43521.0,43520.0,0.00253928]
[1646291304384,0.16530255,43523.0,43520.0,0.00253928]
[1646291304680,0.2611521,43522.0,43520.0,0.00253928]
[1646291304881,0.21170255,43523.0,43520.0,0.00253928]
[1646291305814,0.19386746,43522.0,43520.0,0.00253928]
[1646291307013,0.0464,43521.0,43520.0,0.00253928]
[1646291309860,0.2125492,43521.0,43520.0,0.00253928]
[1646291310060,0.2125492,43521.0,43513.0,0.42224175]
[1646291310061,0.55,43520.0,43513.0,0.42224175]
[1646291310262,0.575,43520.0,43513.0,0.42224175]
[1646291312066,0.73952411,43520.0,43513.0,0.42224175]
[1646291312262,0.73952411,43520.0,43513.0,0.19978699]
[1646291312943,0.73952411,43520.0,43513.0,0.25727199]
[1646291313345,0.73952411,43520.0,43513.0,0.49729661]
[1646291313546,0.80723737,43520.0,43514.0,0.00018583]
[1646291313946,0.80723737,43520.0,43514.0,0.00234653]
[1646291314348,0.73952411,43520.0,43514.0,0.00234653]
[1646291314547,0.575,43520.0,43514.0,0.0021607]
[1646291314750,0.575,43520.0,43514.0,0.00234653]
[1646291315550,0.025,43520.0,43514.0,0.00234653]
[1646291315749,0.03400771,43523.0,43514.0,0.0021607]
[1646291315950,0.03400771,43523.0,43517.0,0.14009254]
[1646291316148,0.00018578,43526.0,43522.0,0.27613447]
[1646291316358,0.00018578,43526.0,43517.0,0.14009254]
[1646291316563,0.00018578,43526.0,43520.0,0.20104773]
[1646291316859,0.23726585,43529.0,43520.0,0.20104773]
[1646291317263,0.23726585,43529.0,43523.0,0.28894786]
[1646291317458,0.23726585,43529.0,43520.0,0.20104773]
[1646291318459,0.23726585,43529.0,43522.0,0.27366415]
[1646291318460,0.31096696,43529.0,43522.0,0.27366415]
[1646291318661,0.23726585,43529.0,43522.0,0.27366415]
[1646291318961,0.23726585,43529.0,43520.0,0.20104773]
[1646291320007,0.025,43529.0,43523.0,0.23907412]
[1646291320810,0.0001822,43528.0,43523.0,0.23907412]
[1646291321608,0.0001822,43528.0,43524.0,0.36513252]
[1646291321807,0.002,43531.0,43523.0,0.23907412]
[1646291322007,0.00017516,43528.0,43523.0,0.23907412]
[1646291322410,0.00017516,43528.0,43524.0,0.36513252]
[1646291322609,0.00017516,43528.0,43525.0,0.02302]
[1646291322810,0.00017516,43528.0,43527.0,0.14009254]
[1646291323010,0.002,43531.0,43527.0,0.50522506]
[1646291323212,0.002,43531.0,43527.0,0.52824506]
[1646291323213,0.00017515,43529.0,43527.0,0.52824506]
[1646291323412,0.00017515,43529.0,43528.0,0.38815252]
[1646291323864,0.00017515,43529.0,43528.0,0.59916535]
[1646291324062,0.002,43531.0,43528.0,0.59916535]
[1646291324263,0.002,43531.0,43530.0,0.16311254]
[1646291324464,0.003,43533.0,43531.0,0.65]
[1646291324663,0.003,43533.0,43532.0,0.36513252]
[1646291324865,0.0042555,43536.0,43532.0,0.36513252]
[1646291325072,0.0042555,43536.0,43535.0,0.14009254]
[1646291325267,0.00314043,43537.0,43535.0,0.14009254]
[1646291325569,0.00243993,43537.0,43535.0,0.14009254]
[1646291329015,0.00243993,43537.0,43535.0,0.14242941]
[1646291329212,0.00162551,43538.0,43535.0,0.14242941]
[1646291330118,0.00143993,43538.0,43536.0,0.23038127]
[1646291332457,0.00143993,43538.0,43536.0,0.59551379]
[1646291332660,0.00143993,43538.0,43536.0,0.23038127]
[1646291333658,0.00143993,43538.0,43536.0,0.25340127]
[1646291333860,0.00143993,43538.0,43536.0,0.23038127]
[1646291336614,0.00143993,43538.0,43537.0,0.36513252]
[1646291337612,0.00318538,43540.0,43537.0,0.36513252]
[1646291337816,0.00318538,43540.0,43539.0,0.14009254]
[1646291338113,0.00018538,43541.0,43540.0,0.55]
[1646291338770,0.00018538,43541.0,43540.0,0.91513252]
[1646291342372,0.00074138,43549.0,43541.0,0.65]
[1646291342612,0.00352155,43549.0,43542.0,0.057447]
[1646291342809,0.00352155,43549.0,43542.0,0.19753954]
[1646291343012,0.00352155,43549.0,43543.0,0.36235856]
[1646291343310,0.8,43544.0,43542.0,0.19753954]
[1646291344210,0.8,43544.0,43543.0,0.36235856]
[1646291344411,0.8,43544.0,43542.0,0.19753954]
[1646291344613,0.8,43544.0,43543.0,0.27545677]
[1646291344813,0.8,43544.0,43543.0,0.63781533]
[1646291345013,0.8,43544.0,43543.0,0.27545677]
[1646291346561,0.56267184,43557.0,43543.0,0.27545677]
[1646291346562,0.00073448,43564.0,43545.0,1.07302]
[1646291346762,0.18126916,43567.0,43545.0,1.07302]
[1646291346763,0.58073201,43566.0,43557.0,0.15]
[1646291346966,0.58073201,43566.0,43556.0,0.17223]
[1646291346967,0.36235856,43565.0,43556.0,0.17223]
[1646291347159,0.36235856,43565.0,43547.0,0.41622]
[1646291347160,0.36235856,43565.0,43548.0,0.0464]
[1646291347361,0.00146896,43566.0,43548.0,0.0464]
[1646291347362,0.00018535,43557.0,43548.0,0.0464]
[1646291347961,0.00018535,43557.0,43556.0,0.505947]
[1646291348164,0.00146896,43564.0,43557.0,1.05]
[1646291348359,0.03302,43579.0,43556.0,0.58177856]
[1646291348360,0.047,43575.0,43566.0,0.7072]
[1646291348565,0.002,43586.0,43576.0,1.405947]
[1646291348759,0.002,43586.0,43585.0,0.528967]
[1646291348760,0.502,43586.0,43585.0,0.528967]
[1646291348962,0.00511042,43589.0,43586.0,0.378967]
[1646291349159,7.05,43599.0,43588.0,0.126]
[1646291349358,7.0,43599.0,43585.0,0.23600663]
[1646291349557,7.0,43599.0,43589.0,0.12048]
[1646291349558,0.0999,43596.0,43589.0,0.12048]
[1646291349761,0.18715949,43594.0,43590.0,0.355947]
[1646291350024,0.18715949,43594.0,43585.0,0.12048]
[1646291350226,6.0006,43599.0,43590.0,0.12048]
[1646291350426,6.0006,43599.0,43591.0,0.36235856]
[1646291350626,6.0006,43599.0,43590.0,0.12048]
[1646291350832,0.26271055,43592.0,43590.0,0.12048]
[1646291351027,1.05,43598.0,43574.0,0.1]
[1646291351333,1.05,43598.0,43576.0,0.1709]
[1646291351334,0.20598604,43586.0,43576.0,0.1709]
[1646291351526,0.20598604,43586.0,43576.0,0.239295]
[1646291351729,0.20598604,43586.0,43576.0,0.114795]
[1646291351928,0.20598604,43586.0,43577.0,0.12048]
[1646291352130,0.00421467,43597.0,43586.0,0.05044168]
[1646291352330,0.00324542,43590.0,43587.0,0.36235856]
[1646291352732,0.00324542,43590.0,43587.0,0.48283856]
[1646291352930,0.00324542,43590.0,43588.0,0.355947]
[1646291353130,6.0006,43599.0,43588.0,0.355947]
[1646291353333,6.0006,43599.0,43590.0,0.05738]
[1646291353334,0.00010451,43591.0,43590.0,0.05738]
[1646291353531,0.00010451,43591.0,43588.0,0.114759]
[1646291354178,0.20917687,43595.0,43588.0,0.94827161]
[1646291354379,0.16807226,43591.0,43588.0,0.94827161]
[1646291354580,0.07115286,43592.0,43588.0,0.95027161]
[1646291354779,0.15765087,43594.0,43589.0,0.04576426]
[1646291354979,0.20917687,43595.0,43589.0,0.04576426]
[1646291355181,0.00327286,43598.0,43589.0,0.04576426]
[1646291355579,0.19808801,43598.0,43589.0,0.04576426]
[1646291355779,0.26399304,43598.0,43589.0,0.04576426]
[1646291355984,0.19808801,43598.0,43584.0,0.22048]
[1646291356181,0.24536292,43594.0,43587.0,0.26251187]
[1646291356380,0.00011385,43591.0,43588.0,0.36960416]
[1646291356581,0.00011385,43591.0,43589.0,0.476427]
[1646291357280,0.00011385,43591.0,43589.0,0.355947]
[1646291357722,0.00011385,43591.0,43589.0,0.413328]
[1646291358126,0.00011385,43591.0,43590.0,0.34658416]
[1646291358424,0.00011385,43591.0,43590.0,2.73284644]
[1646291359525,0.00011385,43591.0,43590.0,0.70253116]
[1646291360123,0.00011385,43591.0,43590.0,1.02562576]
[1646291360423,0.00011385,43591.0,43590.0,0.6790416]
[1646291360624,0.00011385,43591.0,43590.0,1.75584576]
[1646291360825,0.00011385,43591.0,43590.0,1.04864576]
[1646291361027,6.0006,43599.0,43592.0,0.02302]
[1646291361296,2.5947,43599.0,43598.0,1.19778493]
[1646291361487,0.01605908,43609.0,43599.0,1.05]
[1646291361688,0.01605908,43609.0,43599.0,2.5269491]
[1646291361887,0.00352197,43604.0,43599.0,2.6269491]
[1646291362087,0.00352197,43604.0,43601.0,0.73022]
[1646291362285,0.001,43612.0,43604.0,0.9]
[1646291362487,0.001,43612.0,43605.0,0.36960416]
[1646291362786,0.001,43612.0,43606.0,0.02302]
[1646291362987,0.0964,43622.0,43606.0,0.02302]
[1646291362988,0.20396814,43620.0,43608.0,0.02302]
[1646291363186,0.20396814,43620.0,43608.0,0.34658416]
[1646291363187,0.19896814,43620.0,43608.0,0.34658416]
[1646291363387,0.0964,43622.0,43609.0,0.821903]
[1646291363388,0.05,43622.0,43609.0,0.821903]
[1646291363589,0.03052,43631.0,43611.0,0.355947]
[1646291363590,0.07692,43631.0,43611.0,0.355947]
[1646291363788,0.34658416,43625.0,43610.0,0.12048]
[1646291363990,0.001,43631.0,43610.0,0.12048]
[1646291364188,0.001,43631.0,43609.0,0.214703]
[1646291364189,0.37610416,43625.0,43609.0,0.114703]
[1646291364387,0.37610416,43625.0,43604.0,0.21468158]
[1646291364388,0.1926739,43614.0,43605.0,0.26498557]
[1646291364587,0.1926739,43614.0,43610.0,0.005]
[1646291365411,0.2053331,43611.0,43610.0,0.005]
[1646291365810,0.1926739,43614.0,43594.0,0.81741261]
[1646291366012,0.1926739,43614.0,43603.0,0.2886657]
[1646291366209,0.1926739,43614.0,43596.0,0.12048]
[1646291366210,0.06272618,43610.0,43604.0,0.34658416]
[1646291366410,0.1926739,43614.0,43602.0,0.00018541]
[1646291366613,0.00018537,43611.0,43602.0,0.00018541]
[1646291367209,0.00018537,43611.0,43602.0,0.10018541]
[1646291367410,0.41835231,43614.0,43602.0,0.1]
[1646291367611,0.41835231,43614.0,43602.0,0.1001854]
[1646291367810,0.00018537,43609.0,43604.0,0.057362]
[1646291368010,0.00018537,43609.0,43604.0,0.177842]
[1646291368210,0.00018537,43609.0,43605.0,0.02302]
[1646291368410,0.00018537,43609.0,43605.0,0.35522418]
[1646291368612,0.00352142,43617.0,43605.0,0.35522418]
[1646291368868,0.00018537,43609.0,43605.0,0.46993318]
[1646291369069,0.00018537,43609.0,43608.0,0.12048]
[1646291369273,0.00018537,43609.0,43608.0,0.49872418]
[1646291369467,0.00352145,43617.0,43610.0,0.02302]
[1646291369868,0.001,43631.0,43610.0,0.1]
[1646291370071,0.001,43631.0,43616.0,0.355947]
[1646291370273,0.001,43631.0,43618.0,0.02302]
[1646291370472,0.32992861,43629.0,43615.0,0.177811]
[1646291370671,0.32992861,43629.0,43612.0,0.214658]
[1646291370672,0.32992861,43629.0,43623.0,0.057329]
[1646291370871,0.32492861,43629.0,43623.0,0.057329]
[1646291371070,0.15466883,43625.0,43623.0,0.057329]
[1646291371270,0.0949,43629.0,43623.0,0.057329]
[1646291371471,0.0949,43629.0,43624.0,0.71117118]
[1646291371671,0.0949,43629.0,43618.0,0.1]
[1646291371672,0.00018064,43628.0,43621.0,0.35522418]
[1646291372069,0.00018064,43628.0,43622.0,0.1]
[1646291372271,0.0949,43629.0,43626.0,0.355947]
[1646291372515,0.0949,43629.0,43626.0,0.35522418]
[1646291372715,0.0949,43629.0,43626.0,0.12048]
[1646291373116,0.0949,43629.0,43625.0,0.177806]
[1646291373418,0.0949,43629.0,43628.0,0.12048]
[1646291373818,0.09508064,43629.0,43628.0,0.476427]
[1646291374018,0.09508064,43629.0,43628.0,0.47570418]
[1646291374019,0.00018064,43629.0,43628.0,0.47570418]
[1646291374216,0.00018064,43629.0,43628.0,0.57570418]
[1646291374418,0.00018064,43629.0,43628.0,0.93165118]
[1646291374616,0.001,43631.0,43628.0,0.93165118]
[1646291374817,0.002,43634.0,43629.0,1.163147]
[1646291375019,0.001,43647.0,43635.0,1.063147]
[1646291375218,0.001,43654.0,43643.0,1.428967]
[1646291375423,5.00101864,43650.0,43647.0,0.355947]
[1646291375619,4.99601864,43650.0,43647.0,0.0464]
[1646291375819,4.99601864,43650.0,43638.0,0.14844462]
[1646291375820,4.99601864,43650.0,43638.0,0.11145]
[1646291376019,0.23617343,43649.0,43647.0,0.057306]
[1646291376298,4.99601864,43650.0,43647.0,0.057306]
[1646291376699,4.99601864,43650.0,43647.0,0.060306]
[1646291377405,0.16521705,43653.0,43650.0,0.02302]
[1646291377406,0.0026672,43653.0,43650.0,0.02302]
[1646291377606,0.044,43663.0,43653.0,1.065041]
[1646291377800,0.044,43663.0,43654.0,0.42346]
[1646291377801,0.06428813,43662.0,43654.0,0.42346]
[1646291377998,0.00125984,43663.0,43655.0,0.40162418]
[1646291378197,0.00125984,43663.0,43655.0,0.50162418]
[1646291378401,6e-05,43671.0,43656.0,0.957296]
[1646291378601,6e-05,43671.0,43658.0,0.12048]
[1646291378803,6e-05,43671.0,43655.0,0.004]
[1646291378804,0.02952,43661.0,43655.0,0.004]
[1646291379002,1.05,43670.0,43648.0,0.1016362]
[1646291379003,1.05,43655.0,43648.0,0.1016362]
[1646291379202,0.4078672,43654.0,43648.0,0.1016362]
[1646291379405,0.4129089,43653.0,43648.0,0.1016362]
[1646291379606,0.23209859,43652.0,43648.0,0.0016362]
[1646291379802,0.23209859,43652.0,43625.0,0.13193]
[1646291379803,0.13990171,43649.0,43625.0,0.13193]
[1646291380023,0.02952,43644.0,43625.0,0.01145]
[1646291380218,0.5799,43635.0,43625.0,0.01145]
[1646291380416,0.5799,43635.0,43620.0,0.12048]
[1646291380417,0.0464,43634.0,43621.0,0.229255]
[1646291380616,0.0464,43634.0,43621.0,0.239255]
[1646291380819,0.19839409,43629.0,43621.0,0.239255]
[1646291381016,0.0464,43628.0,43624.0,0.057338]
[1646291381215,0.0464,43628.0,43625.0,0.355947]
[1646291381417,0.0464,43628.0,43624.0,0.057338]
[1646291381418,0.0464,43634.0,43627.0,0.114648]
[1646291381619,0.05,43643.0,43628.0,0.35522418]
[1646291381620,0.0464,43639.0,43628.0,0.35522418]
[1646291381816,0.05,43643.0,43628.0,0.47570418]
[1646291381817,0.21737048,43640.0,43628.0,0.47570418]
[1646291382120,0.20972096,43634.0,43631.0,0.057326]
[1646291383217,0.3635613,43642.0,43631.0,0.057326]
[1646291383417,0.05,43643.0,43631.0,0.057326]
[1646291383619,0.3930813,43646.0,43631.0,0.057326]
[1646291383862,0.05477116,43643.0,43631.0,0.057326]
[1646291384063,0.0464,43644.0,43631.0,0.057326]
[1646291384267,0.19294722,43638.0,43631.0,0.057326]
[1646291385062,0.19294722,43638.0,43628.0,0.3635613]
[1646291385464,0.19294722,43638.0,43627.0,0.245128]
[1646291385663,0.24691808,43635.0,43631.0,0.00018878]
[1646291385864,0.19294722,43638.0,43631.0,0.00018878]
[1646291386065,0.19294722,43638.0,43632.0,0.057326]
[1646291386866,0.19294722,43638.0,43633.0,0.00018878]
[1646291388032,0.19294722,43638.0,43632.0,0.057326]
[1646291388227,0.05,43645.0,43633.0,0.00018878]
[1646291388228,0.00018874,43641.0,43633.0,0.00018878]
[1646291389233,0.00018874,43641.0,43632.0,0.060326]
[1646291389234,0.18588864,43636.0,43632.0,0.060326]
[1646291389433,0.25876327,43635.0,43632.0,0.060326]
[1646291389635,0.21949201,43633.0,43632.0,0.003]
[1646291389837,0.21949201,43633.0,43628.0,0.0013838]
[1646291390037,0.3635613,43632.0,43628.0,0.0013838]
[1646291390237,0.0464,43631.0,43628.0,0.0013838]
[1646291390436,0.25876327,43635.0,43628.0,0.0013838]
[1646291390437,0.0464,43630.0,43628.0,0.0013838]
[1646291390642,0.14734521,43629.0,43628.0,0.00356533]
[1646291390939,0.14734521,43629.0,43621.0,0.01]
[1646291390940,1.20682697,43628.0,43621.0,0.01]
[1646291391137,0.0464,43627.0,43621.0,0.01]
[1646291391581,0.17249223,43624.0,43621.0,0.01]
[1646291394885,0.13990171,43622.0,43621.0,0.01]
[1646291395124,0.13990171,43622.0,43606.0,0.01146]
[1646291395125,1.05,43621.0,43606.0,0.01146]
[1646291395326,0.4286615,43620.0,43619.0,0.00018881]
[1646291395524,0.56856321,43620.0,43619.0,0.00018881]
[1646291395723,0.56856321,43620.0,43619.0,8.81e-06]
[1646291396123,0.02302,43619.0,43601.0,0.01]
[1646291396321,0.02302,43619.0,43602.0,0.057365]
[1646291396322,0.0464,43618.0,43602.0,0.057365]
[1646291396521,0.20892731,43613.0,43602.0,0.057365]
[1646291396721,0.0464,43612.0,43608.0,0.13048]
[1646291396923,0.8,43621.0,43614.0,0.46324387]
[1646291397523,0.0464,43620.0,43614.0,0.46324387]
[1646291397720,0.33250087,43620.0,43614.0,0.46324387]
[1646291398122,0.0464,43620.0,43614.0,0.46324387]
[1646291398621,0.0464,43620.0,43614.0,0.46524387]
[1646291398886,0.0464,43620.0,43614.0,0.59572387]
[1646291399088,0.0464,43620.0,43615.0,0.00018881]
[1646291399286,0.21236799,43618.0,43615.0,0.00018881]
[1646291399886,0.8,43621.0,43615.0,0.00018881]
[1646291400093,0.8,43621.0,43614.0,0.46324387]
[1646291400288,0.8,43621.0,43615.0,0.47689788]
[1646291400289,0.79983954,43621.0,43615.0,0.47689788]
[1646291400491,0.79983954,43621.0,43618.0,0.13048]
[1646291400688,0.79983954,43621.0,43619.0,0.355947]
[1646291400887,0.79983954,43621.0,43620.0,0.36221088]
[1646291401087,0.79983954,43621.0,43620.0,0.71815788]
[1646291401491,0.79983954,43621.0,43620.0,0.355947]
[1646291401689,0.79983954,43621.0,43619.0,0.057337]
[1646291402088,0.79983954,43621.0,43618.0,0.13048]
[1646291402830,0.79983954,43621.0,43617.0,0.0001811]
[1646291403224,0.79983954,43621.0,43617.0,0.0575261]
[1646291403623,0.79983954,43621.0,43617.0,0.057345]